[Event "ETCC Open 2023"]
[Site "Budva"]
[Date "2023.11.14"]
[Round "4.32"]
[White "Yuffa, Daniil"]
[Black "Ioannidis, Evgenios"]
[Result "0-1"]
[ECO "E11"]
[WhiteElo "2600"]
[BlackElo "2502"]
[Annotator "ChessBase"]
[PlyCount "137"]
[EventDate "2023.11.10"]
[EventType "team-tourn"]
[EventCountry "MNE"]
[SourceTitle "playchess.com"]
[Source "ChessBase"]
[SourceQuality "1"]
[WhiteTeam "Spain"]
[BlackTeam "Greece"]
[WhiteTeamCountry "ESP"]
[BlackTeamCountry "GRE"]
[TimeControl "40/5400+30:1800+30"]

1. d4 {[%emt 0:00:12]} Nf6 {[%emt 0:00:19]} 2. c4 {[%emt 0:00:13]} e6 {[%emt 0:00:14]} 3. Nf3 {[%emt 0:00:34]} Bb4+ {[%emt 0:00:42]} 4. Nbd2 {[%emt 0:01:20]} d5 {[%emt 0:00:55]} 5. a3 {[%emt 0:02:56]} Be7 {[%emt 0:00:18]} 6. Qc2 {[%emt 0:03:27]} b6 {[%emt 0:01:27]} 7. e4 {[%emt 0:04:52]} dxe4 {[%emt 0:00:56]} 8. Nxe4 {[%emt 0:00:20]} Bb7 {[%emt 0:01:18]} 9. Bd3 {[%emt 0:00:22]} Nbd7 {[%emt 0:02:21]} 10. Be3 {[%emt 0:07:16]} Nxe4 {[%emt 0:06:16]} 11. Bxe4 {[%emt 0:00:05]} Bxe4 {[%emt 0:00:08]} 12. Qxe4 {[%emt 0:00:03]} O-O {[%emt 0:00:14]} 13. Qc6 {[%emt 0:10:01]} Nf6 {[%emt 0:02:46]} 14. Ne5 {[%emt 0:01:27]} Bd6 {[%emt 0:00:43]} 15. O-O-O {[%emt 0:03:09]} Qe8 {[%emt 0:00:55]} 16. h3 {[%emt 0:03:48]} a6 {[%emt 0:04:18]} 17. g4 {[%emt 0:11:35]} Qxc6 {[%emt 0:01:42]} 18. Nxc6 {[%emt 0:00:07]} Rfe8 {[%emt 0:00:06]} 19. a4 {[%emt 0:06:54]} Nd7 {[%emt 0:05:56]} 20. a5 {[%emt 0:07:06]} bxa5 {[%emt 0:21:24]} 21. Nxa5 {[%emt 0:04:35]} Bb4 {[%emt 0:06:08]} 22. Nc6 {[%emt 0:01:03]} Bf8 {[%emt 0:00:21]} 23. Na5 {[%emt 0:06:45]} Bb4 {[%emt 0:05:12]} 24. Bd2 {[%emt 0:00:23]} Rab8 {[%emt 0:02:30]} 25. Kc2 {[%emt 0:01:15]} Bxd2 {[%emt 0:09:26]} 26. Rxd2 {[%emt 0:00:06]} h5 {[%emt 0:00:33]} 27. Kc3 {[%emt 0:04:35]} e5 {[%emt 0:03:06]} 28. dxe5 {[%emt 0:04:51]} Nxe5 {[%emt 0:02:41]} 29. gxh5 {[%emt 0:00:43]} Nf3 {[%emt 0:02:33]} 30. Rd3 {[%emt 0:01:34]} Ng5 {[%emt 0:00:09]} 31. f3 {[%emt 0:02:07]} Re2 {[%emt 0:07:11]} 32. b3 {[%emt 0:00:06]} Rb6 {[%emt 0:01:44]} 33. Rhd1 {[%emt 0:03:33]} Rf6 {[%emt 0:02:58]} 34. Nb7 {[%emt 0:02:11]} Ne6 {[%emt 0:00:43]} 35. Kb4 {[%emt 0:01:33]} Kh7 {[%emt 0:00:50]} 36. Ka3 {[%emt 0:02:28]} Rh2 {[%emt 0:02:32]} 37. Nd8 {[%emt 0:01:07]} Nxd8 {[%emt 0:00:58]} 38. Rxd8 {[%emt 0:00:03]} Rxf3 {[%emt 0:00:04]} 39. R1d3 {[%emt 0:00:55]} Rhxh3 {[%emt 0:00:34]} 40. Rxf3 {[%emt 0:00:05]} Rxf3 {[%emt 0:00:03]} 41. Kb4 {[%emt 0:06:53]} a5+ {[%emt 0:23:13]} 42. Ka4 {[%emt 0:03:45]} Kh6 {[%emt 0:01:49]} 43. Rh8+ {[%emt 0:02:04]} Kg5 {[%emt 0:00:04]} 44. Rg8 {[%emt 0:02:27]} Rf5 {[%emt 0:01:52]} 45. Rxg7+ {[%emt 0:00:37]} Kxh5 {[%emt 0:00:05]} 46. Rg8 {[%emt 0:04:03]} Rc5 {[%emt 0:01:35]} 47. Rf8 {[%emt 0:02:26]} Kg6 {[%emt 0:00:13]} 48. Rg8+ {[%emt 0:02:57]} Kh6 {[%emt 0:00:38]} 49. Ka3 {[%emt 0:03:41]} f5 {[%emt 0:01:12]} 50. Kb2 {[%emt 0:00:48]} Re5 {[%emt 0:06:06]} 51. Kc3 {[%emt 0:02:11]} c5 {[%emt 0:01:13]} 52. Kd3 {[%emt 0:04:09]} f4 {[%emt 0:00:54]} 53. Rg4 {[%emt 0:01:07]} Re3+ {[%emt 0:00:07]} 54. Kd2 {[%emt 0:00:28]} Re4 {[%emt 0:00:25]} 55. Rg1 {[%emt 0:01:55]} Kh5 {[%emt 0:00:26]} 56. Rh1+ {[%emt 0:00:47]} Kg4 {[%emt 0:00:36]} 57. Rg1+ {[%emt 0:00:07]} Kf5 {[%emt 0:02:00]} 58. Rg8 {[%emt 0:00:58]} f3 {[%emt 0:00:16]} 59. Rf8+ {[%emt 0:02:04]} Kg4 {[%emt 0:00:04]} 60. Kd3 {[%emt 0:00:44]} Re5 {[%emt 0:00:52]} 61. Rg8+ {[%emt 0:00:33]} Kh3 {[%emt 0:00:32]} 62. Rf8 {[%emt 0:00:23]} Kg2 {[%emt 0:00:11]} 63. Rg8+ {[%emt 0:00:07]} Kf1 {[%emt 0:00:10]} 64. Kd2 {[%emt 0:00:43]} f2 {[%emt 0:00:04]} 65. Rg7 {[%emt 0:00:27]} Re4 {[%emt 0:00:04]} 66. Rf7 {[%emt 0:00:20]} Kg2 {[%emt 0:00:09]} 67. Rg7+ {[%emt 0:00:02]} Kf3 {[%emt 0:00:04]} 68. Rf7+ {[%emt 0:00:12]} Rf4 {[%emt 0:00:03]} 69. Kd3 {[%emt 0:02:17]} 0-1

[Event "ETCC Open 2023"]
[Site "Budva"]
[Date "2023.11.14"]
[Round "4.33"]
[White "Bacrot, Etienne"]
[Black "Vocaturo, Daniele"]
[Result "1/2-1/2"]
[ECO "B45"]
[WhiteElo "2668"]
[BlackElo "2632"]
[Annotator "ChessBase"]
[PlyCount "126"]
[EventDate "2023.11.10"]
[EventType "team-tourn"]
[EventCountry "MNE"]
[SourceTitle "playchess.com"]
[Source "ChessBase"]
[SourceQuality "1"]
[WhiteTeam "France"]
[BlackTeam "Italy"]
[WhiteTeamCountry "FRA"]
[BlackTeamCountry "ITA"]
[TimeControl "40/5400+30:1800+30"]

1. e4 {[%emt 0:07:14]} c5 {[%emt 0:00:23]} 2. Nf3 {[%emt 0:00:11]} e6 {[%emt 0:00:20]} 3. d4 {[%emt 0:00:06]} cxd4 {[%emt 0:00:11]} 4. Nxd4 {[%emt 0:00:03]} Nf6 {[%emt 0:00:23]} 5. Nc3 {[%emt 0:00:06]} Nc6 {[%emt 0:00:36]} 6. Ndb5 {[%emt 0:00:06]} Bb4 {[%emt 0:00:56]} 7. a3 {[%emt 0:04:22]} Bxc3+ {[%emt 0:00:31]} 8. Nxc3 {[%emt 0:00:06]} d5 {[%emt 0:00:20]} 9. exd5 {[%emt 0:06:44]} exd5 {[%emt 0:00:11]} 10. Bd3 {[%emt 0:00:05]} O-O {[%emt 0:02:04]} 11. O-O {[%emt 0:00:06]} Bg4 {[%emt 0:02:22]} 12. f3 {[%emt 0:03:57]} Bh5 {[%emt 0:00:14]} 13. Bg5 {[%emt 0:04:05]} Qb6+ {[%emt 0:02:15]} 14. Kh1 {[%emt 0:01:07]} Ne4 {[%emt 0:00:34]} 15. Nxe4 {[%emt 0:01:16]} dxe4 {[%emt 0:00:06]} 16. Bxe4 {[%emt 0:00:04]} Qxb2 {[%emt 0:00:30]} 17. Qb1 {[%emt 0:01:02]} Qb6 {[%emt 0:03:08]} 18. Qxb6 {[%emt 0:02:03]} axb6 {[%emt 0:00:04]} 19. Rfb1 {[%emt 0:00:07]} Bg6 {[%emt 0:01:15]} 20. Bxc6 {[%emt 0:03:12]} bxc6 {[%emt 0:00:10]} 21. Rxb6 {[%emt 0:00:08]} h6 {[%emt 0:04:25]} 22. Be3 {[%emt 0:05:58]} Rfe8 {[%emt 0:02:39]} 23. Bg1 {[%emt 0:01:34]} Bxc2 {[%emt 0:02:40]} 24. Rxc6 {[%emt 0:00:17]} Ba4 {[%emt 0:00:30]} 25. Rc4 {[%emt 0:00:45]} Ra6 {[%emt 0:05:31]} 26. Rb1 {[%emt 0:03:12]} Bd7 {[%emt 0:04:49]} 27. Rd1 {[%emt 0:01:21]} Ba4 {[%emt 0:04:17]} 28. Rdd4 {[%emt 0:03:56]} Rea8 {[%emt 0:06:09]} 29. Rc3 {[%emt 0:06:18]} Be8 {[%emt 0:11:12]} 30. Rdd3 {[%emt 0:04:53]} Bb5 {[%emt 0:01:23]} 31. Rd5 {[%emt 0:00:42]} Be8 {[%emt 0:00:35]} 32. h3 {[%emt 0:05:28]} Kh7 {[%emt 0:01:18]} 33. Re5 {[%emt 0:03:15]} Bd7 {[%emt 0:00:53]} 34. Rc7 {[%emt 0:00:39]} Be6 {[%emt 0:01:10]} 35. Bc5 {[%emt 0:02:23]} Rd8 {[%emt 0:01:19]} 36. Bb4 {[%emt 0:00:16]} Rd3 {[%emt 0:03:45]} 37. Kh2 {[%emt 0:04:16]} g5 {[%emt 0:12:46]} 38. a4 {[%emt 0:03:03]} Rd4 {[%emt 0:08:25]} 39. Rb7 {[%emt 0:00:47]} Bd5 {[%emt 0:11:07]} 40. Rd7 {[%emt 0:06:06]} Rxb4 {[%emt 0:01:31]} 41. Rexd5 {[%emt 0:30:10]} Rbxa4 {[%emt 0:34:12]} 42. Rxf7+ {[%emt 0:05:35]} Kg6 {[%emt 0:00:05]} 43. Rdd7 {[%emt 0:00:13]} Kh5 {[%emt 0:00:00]} 44. Rg7 {[%emt 0:00:00]} Rb6 {[%emt 0:00:00]} 45. Rd2 {[%emt 0:00:00]} Rab4 {[%emt 0:00:00]} 46. Re2 {[%emt 0:00:00]} Rb2 {[%emt 0:00:00]} 47. Re4 {[%emt 0:00:00]} Rb7 {[%emt 0:00:00]} 48. Rxb7 {[%emt 0:00:00]} Rxb7 {[%emt 0:00:00]} 49. Re6 {[%emt 0:00:00]} Rb2 {[%emt 0:00:00]} 50. Kg3 {[%emt 0:00:00]} Rb4 {[%emt 0:00:00]} 51. h4 {[%emt 0:00:00]} Ra4 {[%emt 0:00:49]} 52. hxg5 {[%emt 0:00:00]} hxg5 {[%emt 0:00:11]} 53. Kh2 {[%emt 0:00:00]} Rh4+ {[%emt 0:01:06]} 54. Kg1 {[%emt 0:00:00]} Ra4 {[%emt 0:00:13]} 55. g3 {[%emt 0:00:00]} Ra2 {[%emt 0:00:41]} 56. Kf1 {[%emt 0:00:00]} Rb2 {[%emt 0:00:42]} 57. Re2 {[%emt 0:00:00]} Rb3 {[%emt 0:00:13]} 58. Kg2 {[%emt 0:00:00]} Kg6 {[%emt 0:00:16]} 59. Re6+ {[%emt 0:00:00]} Kf7 {[%emt 0:01:00]} 60. Rd6 {[%emt 0:00:00]} Ra3 {[%emt 0:00:19]} 61. Kf2 {[%emt 0:00:00]} Rb3 {[%emt 0:00:26]} 62. Ke2 {[%emt 0:00:00]} g4 {[%emt 0:00:42]} 63. fxg4 {[%emt 0:00:00]} Rxg3 {[%emt 0:00:05]} 1/2-1/2

[Event "ETCC Open 2023"]
[Site "Budva"]
[Date "2023.11.14"]
[Round "4.34"]
[White "Moroni, Luca Jr"]
[Black "Moussard, Jules"]
[Result "1-0"]
[ECO "E51"]
[WhiteElo "2575"]
[BlackElo "2639"]
[Annotator "TA"]
[PlyCount "59"]
[EventDate "2023.11.10"]
[EventType "team-tourn"]
[EventCountry "MNE"]
[SourceTitle "playchess.com"]
[Source "ChessBase"]
[SourceQuality "1"]
[WhiteTeam "Italy"]
[BlackTeam "France"]
[WhiteTeamCountry "ITA"]
[BlackTeamCountry "FRA"]
[TimeControl "40/5400+30:1800+30"]

{[%evp 11,59,0,6,0,0,0,10,10,10,18,6,15,16,6,79,68,71,78,93,94,107,110,110,117,113,114,136,147,147,144,250,250,345,321,328,327,557,561,513,461,555,544,524,469,870,760,1450,1323,1597,1579]} 1. d4 {[%emt 0:00:03]} Nf6 {[%emt 0:00:12]} 2. c4 {[%emt 0:00:04]} e6 {[%emt 0:00:09]} 3. Nc3 {[%emt 0:00:09]} Bb4 {[%emt 0:00:31]} 4. e3 {[%emt 0:00:10]} O-O {[%emt 0:00:24]} 5. Bd2 {[%emt 0:00:42]} d5 {[%emt 0:01:24]} 6. Nf3 {[%emt 0:06:41]} Nbd7 {[%emt 0:05:45]} 7. Rc1 {[%emt 0:02:57] 7.a3 is a critical line. E51: Nimzo-Indian: Rubinstein: 4...0-0 5 Nf3 d5.} c6 {[%emt 0:09:08]} 8. Bd3 {[%emt 0:10:12]} Qe7 {[%emt 0:03:48]} 9. O-O {[%emt 0:19:23] The position is equal.} dxc4 {[%emt 0:05:14]} 10. Bxc4 {[%emt 0:00:05]} e5 {[%emt 0:00:14]} 11. Qc2 {[%emt 0:03:31]} Bd6 {[%emt 0:05:57]} 12. h3 {[%emt 0:01:27] [#]} Nb6 $146 {[%emt 0:11:04]} (12... e4 $11 13. Ng5 Nb6) ({Predecessor:} 12... a5 13. a3 Bc7 14. Ba2 g6 15. Rfe1 Kg7 16. e4 exd4 17. Nxd4 Ne5 18. f4 Bb6 19. Be3 Neg4 20. Nf5+ gxf5 21. Bxb6 Nh6 22. exf5 Qd7 23. g4 {1-0 Bluebaum,M (2642)-Sjugirov,S (2680) Titled Tuesday intern op 15th Feb Late blitz 2022 (8)}) 13. Nxe5 $16 {[%emt 0:07:52] White is more active.} Bxe5 {[%emt 0:13:15]} 14. dxe5 {[%emt 0:03:57] Black is now going downhill.} Qxe5 {[%emt 0:05:45] [#]} 15. Bd3 {[%emt 0:00:50]} Rd8 {[%emt 0:02:52][%cal Oc8h3]} 16. Rfd1 {[%emt 0:03:02]} Be6 {[%emt 0:04:24]} 17. Ne2 {[%emt 0:13:26]} h6 {[%emt 0:04:34]} 18. b3 {[%emt 0:07:11]} a5 {[%emt 0:03:37]} 19. Bc3 {[%emt 0:05:09] A strong pair of Bishops.} Qg5 {[%emt 0:00:53] [#]} 20. f4 $1 {[%emt 0:00:28][%cal Bf2f4,Bf4f5][%mdl 32]} Qh5 {[%emt 0:04:49]} (20... Qc5 $16) 21. e4 $18 {[%emt 0:06:37]} a4 {[%emt 0:04:54]} 22. f5 {[%emt 0:00:43]} axb3 {[%emt 0:00:13]} 23. axb3 {[%emt 0:00:02]} Bc8 {[%emt 0:00:59]} (23... Nxe4 24. fxe6 Nxc3) 24. Bxf6 {[%emt 0:05:25] White is clearly winning.} gxf6 {[%emt 0:00:02]} 25. Qc5 {[%emt 0:00:05]} Nd7 {[%emt 0:00:43]} (25... Rxd3 $2 26. Rxd3 Qg5 27. Qxb6) 26. Qe7 {[%emt 0:00:19]} Rf8 {[%emt 0:00:04]} 27. Rc3 {[%emt 0:00:38][%cal Bc1c3,Bc3g3,Bg3g4][%mdl 32] Bc4 is the strong threat.} Ra5 {[%emt 0:04:04] [#]} (27... Kh7 $142 28. Bc4 b5) 28. Bb5 $1 {[%emt 0:00:34][%mdl 512]} Ra8 {[%emt 0:07:20]} (28... cxb5 29. Rxd7) 29. Rg3+ {[%emt 0:01:47]} Kh7 {[%emt 0:00:04] [#]} 30. Rg4 $1 {[%emt 0:00:30] Weighted Error Value: White=0.02 (flawless) /Black=0.47} 1-0

[Event "ETCC Open 2023"]
[Site "Budva"]
[Date "2023.11.14"]
[Round "4.35"]
[White "Lagarde, Maxime"]
[Black "Lodici, Lorenzo"]
[Result "1/2-1/2"]
[ECO "A07"]
[WhiteElo "2629"]
[BlackElo "2550"]
[Annotator "ChessBase"]
[PlyCount "110"]
[EventDate "2023.11.10"]
[EventType "team-tourn"]
[EventCountry "MNE"]
[SourceTitle "playchess.com"]
[Source "ChessBase"]
[SourceQuality "1"]
[WhiteTeam "France"]
[BlackTeam "Italy"]
[WhiteTeamCountry "FRA"]
[BlackTeamCountry "ITA"]
[TimeControl "40/5400+30:1800+30"]

1. Nf3 {[%emt 0:00:03]} d5 {[%emt 0:00:36]} 2. g3 {[%emt 0:00:16]} c6 {[%emt 0:04:07]} 3. Bg2 {[%emt 0:00:38]} Bf5 {[%emt 0:00:06]} 4. O-O {[%emt 0:00:23]} h6 {[%emt 0:00:08]} 5. d3 {[%emt 0:02:17]} Nf6 {[%emt 0:00:14]} 6. c4 {[%emt 0:05:54]} dxc4 {[%emt 0:00:04]} 7. d4 {[%emt 0:00:25]} Nbd7 {[%emt 0:11:36]} 8. Na3 {[%emt 0:19:07]} Nb6 {[%emt 0:02:03]} 9. Ne5 {[%emt 0:00:41]} Be4 {[%emt 0:01:03]} 10. f3 {[%emt 0:03:12]} Bh7 {[%emt 0:00:08]} 11. e4 {[%emt 0:01:14]} e6 {[%emt 0:00:12]} 12. Naxc4 {[%emt 0:00:30]} Nxc4 {[%emt 0:00:09]} 13. Nxc4 {[%emt 0:00:04]} Be7 {[%emt 0:00:49]} 14. Be3 {[%emt 0:02:08]} O-O {[%emt 0:05:50]} 15. b4 {[%emt 0:03:16]} Ne8 {[%emt 0:05:01]} 16. Qb3 {[%emt 0:58:22]} Nd6 {[%emt 0:00:08]} 17. Na5 {[%emt 0:00:00]} Qd7 {[%emt 0:05:49]} 18. Rac1 {[%emt 0:00:00]} Rfc8 {[%emt 0:04:41]} 19. Qa4 {[%emt 0:00:00]} Rc7 {[%emt 0:06:27]} 20. Rfd1 {[%emt 0:00:00]} Bg6 {[%emt 0:02:09]} 21. Bf2 {[%emt 0:00:00]} Qd8 {[%emt 0:05:36]} 22. Qb3 {[%emt 0:00:00]} Qd7 {[%emt 0:08:56]} 23. a4 {[%emt 0:00:00]} Rcc8 {[%emt 0:02:10]} 24. e5 {[%emt 0:00:00]} Nf5 {[%emt 0:06:19]} 25. b5 {[%emt 0:00:00]} Rab8 {[%emt 0:01:27]} 26. Nc4 {[%emt 0:00:00]} Bd8 {[%emt 0:04:59]} 27. h3 {[%emt 0:00:00]} Bc7 {[%emt 0:01:36]} 28. f4 {[%emt 0:00:00]} Ne7 {[%emt 0:02:00]} 29. Nd2 {[%emt 0:00:29]} Nd5 {[%emt 0:02:31]} 30. Ne4 {[%emt 0:00:08]} Ba5 {[%emt 0:02:04]} 31. Nd6 {[%emt 0:00:46]} Rd8 {[%emt 0:00:03]} 32. Qc4 {[%emt 0:02:03]} Nb6 {[%emt 0:01:57]} 33. Qc5 {[%emt 0:01:03]} cxb5 {[%emt 0:05:06]} 34. axb5 {[%emt 0:01:19]} Nd5 {[%emt 0:00:07]} 35. Bxd5 {[%emt 0:00:46]} exd5 {[%emt 0:00:05]} 36. g4 {[%emt 0:00:12]} Be4 {[%emt 0:08:05]} 37. Qxa7 {[%emt 0:00:05]} Bb4 {[%emt 0:01:04]} 38. Nxe4 {[%emt 0:00:05]} dxe4 {[%emt 0:00:02]} 39. d5 {[%emt 0:00:13]} Qxb5 {[%emt 0:02:00]} 40. Qd4 {[%emt 0:00:14]} Rbc8 {[%emt 0:01:00]} 41. Rxc8 {[%emt 0:34:30]} Rxc8 {[%emt 0:30:01]} 42. Qxe4 {[%emt 0:00:00]} Rc4 {[%emt 0:00:00]} 43. Qe2 {[%emt 0:00:00]} Bc5 {[%emt 0:00:00]} 44. Rd2 {[%emt 0:00:00]} Bxf2+ {[%emt 0:00:00]} 45. Qxf2 {[%emt 0:00:00]} Qb1+ {[%emt 0:00:00]} 46. Kh2 {[%emt 0:00:00]} Qb4 {[%emt 0:00:00]} 47. d6 {[%emt 0:00:00]} Rxf4 {[%emt 0:00:00]} 48. Qe2 {[%emt 0:00:00]} Rf3 {[%emt 0:00:00]} 49. Kg2 {[%emt 0:00:00]} Qf4 {[%emt 0:00:00]} 50. Qxf3 {[%emt 0:01:54]} Qxd2+ {[%emt 0:00:00]} 51. Kf1 {[%emt 0:01:01]} Qc1+ {[%emt 0:00:00]} 52. Ke2 {[%emt 0:00:07]} Qc2+ {[%emt 0:00:00]} 53. Ke1 {[%emt 0:00:39]} Qc1+ {[%emt 0:00:00]} 54. Ke2 {[%emt 0:00:27]} Qc2+ {[%emt 0:00:00]} 55. Ke1 {[%emt 0:00:09]} Qc1+ {[%emt 0:00:00]} 1/2-1/2

[Event "ETCC Open 2023"]
[Site "Budva"]
[Date "2023.11.14"]
[Round "4.36"]
[White "Dvirnyy, Danyyil"]
[Black "Maurizzi, Marc`Andria"]
[Result "1/2-1/2"]
[ECO "D27"]
[WhiteElo "2495"]
[BlackElo "2572"]
[Annotator "TA"]
[PlyCount "60"]
[EventDate "2023.11.10"]
[EventType "team-tourn"]
[EventCountry "MNE"]
[SourceTitle "playchess.com"]
[Source "ChessBase"]
[SourceQuality "1"]
[WhiteTeam "Italy"]
[BlackTeam "France"]
[WhiteTeamCountry "ITA"]
[BlackTeamCountry "FRA"]
[TimeControl "40/5400+30:1800+30"]

{[%evp 15,60,87,25,26,38,26,34,40,67,26,29,30,51,33,31,33,33,25,36,31,38,23,37,40,57,44,44,56,54,0,0,0,0,0,0,0,0,0,0,0,0,0,0,0,0,0,0]} 1. d4 {[%emt 0:00:03]} d5 {[%emt 0:00:53]} 2. c4 {[%emt 0:01:58]} dxc4 {[%emt 0:00:37]} 3. Nf3 {[%emt 0:01:16]} Nf6 {[%emt 0:00:08]} 4. e3 {[%emt 0:00:18]} e6 {[%emt 0:00:15]} 5. Bxc4 {[%emt 0:00:19]} c5 {[%emt 0:00:14]} 6. O-O {[%emt 0:00:34]} a6 {[%emt 0:00:02]} 7. dxc5 {[%emt 0:07:24]} Bxc5 {[%emt 0:02:05]} 8. Qxd8+ {[%emt 0:00:28]} Kxd8 {[%emt 0:00:02]} 9. Be2 {[%emt 0:03:44] D27: Queen's Gambit Accepted: Classical main line: 7 e4!? and 7 a4.} Ke7 {[%emt 0:07:53]} 10. Ne5 {[%emt 0:05:35]} Nbd7 {[%emt 0:11:52]} 11. Nc4 {[%emt 0:15:14] White is slightly better.} Ra7 {[%emt 0:16:57]} 12. Nbd2 {[%emt 0:07:11]} b5 {[%emt 0:03:46]} 13. Na5 {[%emt 0:00:23][%cal Ob2b4] [#] aiming for b4!} Rc7 {[%emt 0:00:38]} 14. Ndb3 {[%emt 0:03:25]} Bd6 {[%emt 0:06:24]} 15. a4 {[%emt 0:02:51]} bxa4 {[%emt 0:02:58]} 16. Rxa4 {[%emt 0:01:34]} Nb6 {[%emt 0:02:25] Prevents Rc4} 17. Ra1 {[%emt 0:01:53]} e5 {[%emt 0:10:04] [#]} 18. Bd2 $146 {[%emt 0:01:13]} ({Predecessor:} 18. f3 Nfd5 19. Bd2 Bb4 20. Bxb4+ Nxb4 21. Rac1 Rxc1 22. Rxc1 Rd8 23. Nc6+ Nxc6 24. Rxc6 {½-½ Nogly,C (2280)-Spivak,I (2346) BL2-Nord 1415 2014 (5.6)}) 18... Ne4 {[%emt 0:06:43]} ({Resist} 18... Rc2 19. Bd3 Rc7 20. Rfc1 $16) 19. Rfc1 {[%emt 0:00:28]} Nxd2 {[%emt 0:05:26]} 20. Nxd2 {[%emt 0:00:49]} Rxc1+ {[%emt 0:01:47]} 21. Rxc1 {[%emt 0:00:09]} Bd7 {[%emt 0:04:08]} 22. Ne4 {[%emt 0:06:29]} (22. Bxa6 $2 {loses.} Ra8 23. Ra1 Na4 $19) (22. Nc6+ $14 Ke6 23. Bxa6) 22... Rc8 $11 {[%emt 0:02:12] The position is equal.} 23. Rxc8 {[%emt 0:05:51]} Bxc8 {[%emt 0:00:08]} 24. Nxd6 {[%emt 0:01:57]} Kxd6 {[%emt 0:00:02]} 25. Nc4+ {[%emt 0:00:29]} Nxc4 {[%emt 0:00:07]} 26. Bxc4 {[%emt 0:00:03] KB-KB} f6 {[%emt 0:00:36]} 27. b4 {[%emt 0:00:06]} Kc6 {[%emt 0:00:43]} 28. f4 {[%emt 0:00:20]} exf4 {[%emt 0:00:50]} 29. exf4 {[%emt 0:00:06]} Kb6 {[%emt 0:00:34]} 30. Kf2 {[%emt 0:00:07]} a5 {[%emt 0:00:36] Weighted Error Value: White=0.07 (flawless) /Black=0.03 (flawless)} 1/2-1/2

[Event "ETCC Open 2023"]
[Site "Budva"]
[Date "2023.11.14"]
[Round "4.37"]
[White "Fedoseev, Vladimir"]
[Black "Predke, Alexandr"]
[Result "1/2-1/2"]
[ECO "D27"]
[WhiteElo "2675"]
[BlackElo "2661"]
[Annotator "ChessBase"]
[PlyCount "92"]
[EventDate "2023.11.10"]
[EventType "team-tourn"]
[EventCountry "MNE"]
[SourceTitle "playchess.com"]
[Source "ChessBase"]
[SourceQuality "1"]
[WhiteTeam "Slovenia"]
[BlackTeam "Serbia"]
[WhiteTeamCountry "SLO"]
[BlackTeamCountry "SRB"]
[TimeControl "40/5400+30:1800+30"]

1. d4 {[%emt 0:00:18]} d5 {[%emt 0:02:05]} 2. c4 {[%emt 0:00:15]} dxc4 {[%emt 0:00:08]} 3. Nf3 {[%emt 0:00:06]} Nf6 {[%emt 0:00:07]} 4. e3 {[%emt 0:00:06]} e6 {[%emt 0:00:09]} 5. Bxc4 {[%emt 0:00:07]} a6 {[%emt 0:00:07]} 6. O-O {[%emt 0:00:09]} c5 {[%emt 0:00:05]} 7. b3 {[%emt 0:00:07]} cxd4 {[%emt 0:00:26]} 8. Nxd4 {[%emt 0:00:09]} Bc5 {[%emt 0:00:15]} 9. Bb2 {[%emt 0:00:05]} O-O {[%emt 0:00:37]} 10. Qc2 {[%emt 0:00:05]} Qe7 {[%emt 0:18:46]} 11. Nc3 {[%emt 0:00:17]} b5 {[%emt 0:06:32]} 12. Bd3 {[%emt 0:00:08]} Bxd4 {[%emt 0:08:25]} 13. exd4 {[%emt 0:00:08]} Bb7 {[%emt 0:00:14]} 14. d5 {[%emt 0:00:47]} exd5 {[%emt 0:18:05]} 15. Ne2 {[%emt 0:17:12]} Nc6 {[%emt 0:02:03]} 16. Ng3 {[%emt 0:03:09]} d4 {[%emt 0:02:47]} 17. Nf5 {[%emt 0:04:17]} Qd7 {[%emt 0:01:10]} 18. Qd2 {[%emt 0:04:36]} Ne7 {[%emt 0:05:05]} 19. Nxd4 {[%emt 0:03:11]} Ng6 {[%emt 0:06:13]} 20. f3 {[%emt 0:06:01]} Rfe8 {[%emt 0:01:38]} 21. Nf5 {[%emt 0:04:17]} Re6 {[%emt 0:01:08]} 22. Rad1 {[%emt 0:06:10]} Qc7 {[%emt 0:02:18]} 23. Bb1 {[%emt 0:09:57]} Rae8 {[%emt 0:02:43]} 24. Qg5 {[%emt 0:02:34]} a5 {[%emt 0:09:22]} 25. Qg3 {[%emt 0:05:22]} Qxg3 {[%emt 0:00:39]} 26. hxg3 {[%emt 0:00:05]} Ba6 {[%emt 0:00:17]} 27. Nd6 {[%emt 0:06:11]} R8e7 {[%emt 0:00:22]} 28. Nf5 {[%emt 0:05:03]} Re8 {[%emt 0:00:03]} 29. Rc1 {[%emt 0:01:46]} Ne7 {[%emt 0:01:56]} 30. Nd4 {[%emt 0:00:45]} Rd6 {[%emt 0:01:49]} 31. Rfe1 {[%emt 0:03:10]} Kf8 {[%emt 0:00:11]} 32. Rc7 {[%emt 0:05:07]} Nf5 {[%emt 0:01:36]} 33. Rxe8+ {[%emt 0:04:41]} Nxe8 {[%emt 0:00:04]} 34. Rc6 {[%emt 0:00:06]} Nxd4 {[%emt 0:02:24]} 35. Rxd6 {[%emt 0:00:02]} Nxf3+ {[%emt 0:00:20]} 36. gxf3 {[%emt 0:00:04]} Nxd6 {[%emt 0:00:02]} 37. Be5 {[%emt 0:00:35]} Ne8 {[%emt 0:02:48]} 38. Bd3 {[%emt 0:01:34]} Bb7 {[%emt 0:00:22]} 39. Bxb5 {[%emt 0:02:34]} Bxf3 {[%emt 0:00:07]} 40. Kf2 {[%emt 0:03:28]} Bd5 {[%emt 0:00:04]} 41. Ke3 {[%emt 0:32:38]} h5 {[%emt 0:34:04]} 42. Kd4 {[%emt 0:00:00]} Bf3 {[%emt 0:00:00]} 43. Kc5 {[%emt 0:00:00]} g5 {[%emt 0:00:00]} 44. Kb6 {[%emt 0:00:00]} Ke7 {[%emt 0:00:00]} 45. Bxe8 {[%emt 0:00:00]} Kxe8 {[%emt 0:00:00]} 46. Bf6 {[%emt 0:00:00]} a4 {[%emt 0:00:00]} 1/2-1/2